Cogmind - Beta 11 @@@ ROGUE MODE // 2022.04.13 @ 00:29:00 Player: RNGesus Result: Destroyed by as-97439 with Assembled Blade Performance ------------- Evolutions (0) 0 Regions Visited (3) 600 Robots Destroyed (24) 120 Value Destroyed (593) 593 Prototype IDs (23) 460 Alien Tech Used (0) 0 Bonus (270) 270 TOTAL SCORE: 2043 Bonus ------- Aligned with FarCom 300 Friendly Fire -30 Cogmind --------- Core Integrity 0/250 Matter 295/300 Energy 100/100 System Corruption 3% Temperature Cool (0) Movement Treading (240) Ox1 Location -10/Exiles Parts ------- > --- POWER (1) -------- (None) > --- PROPULSION (2) --- Light Treads Light Treads > --- UTILITY (2) ------ High-capacity Storage Unit > --- WEAPON (2) ------- Hammer > --- INVENTORY (20) --- Light Nuclear Core Light Treads Light Treads Wheel Compact Wheel Small Storage Unit Huge Storage Unit Seismic Detector Decoy Drone Bay Small Laser Small Laser Particle Gun Peak State ------------ > --- POWER ------------ Light Ion Engine > --- PROPULSION ------- Light Treads Light Treads > --- UTILITY ---------- High-capacity Storage Unit > --- WEAPON ----------- Small Laser Small Laser > --- INVENTORY -------- Light Nuclear Core Light Treads Light Treads Light Treads Wheel Compact Wheel Small Storage Unit Huge Storage Unit Seismic Detector Decoy Drone Bay Small Laser Particle Gun [Rating: 8] Favorites ----------- Power Light Ion Engine Engine Light Ion Engine Propulsion Light Treads Treads Light Treads Utility High-capacity Storage Unit Storage High-capacity Storage Unit Weapon Small Laser Energy Gun Small Laser Impact Weapon Hammer Build | -11 -10 -10 -10 ------- Run | Scr Mat Min Exi Slots Evolved . | . . . . Power . | . . . . Propulsion . | . . . . Utility . | . . . . Weapon . | . . . . Parts Attached 14 | 6 6 . 2 Power 3 | 1 2 . . Engine 3 | 1 2 . . Core . | . . . . Reactor . | . . . . Propulsion 3 | 2 . . 1 Treads 3 | 2 . . 1 Leg . | . . . . Wheel . | . . . . Hover . | . . . . Flight . | . . . . Utility 2 | 1 1 . . Device . | . . . . Storage 2 | 1 1 . . Processor . | . . . . Hackware . | . . . . Protection . | . . . . Artifact . | . . . . Weapon 6 | 2 3 . 1 Energy Gun 5 | 2 3 . . Energy Cannon . | . . . . Ballistic Gun . | . . . . Ballistic Cannon . | . . . . Launcher . | . . . . Special Weapon . | . . . . Impact Weapon 1 | . . . 1 Slashing Weapon . | . . . . Piercing Weapon . | . . . . Special Melee Weapon . | . . . . Unidentified Prototypes . | . . . . Parts Lost 8 | . 5 . 3 Power 3 | . 2 . 1 Propulsion 1 | . . . 1 Utility . | . . . . Weapon 4 | . 3 . 1 Highest Loss Streak 3 | . 2 . 3 To Critical Strikes . | . . . . Average Slot Usage (%) 84 | . 84 85 84 Engine 13 | . 13 14 13 Treads 28 | . 28 28 28 Storage 14 | . 14 14 14 Energy Gun 27 | . 27 28 26 Naked Turns . | . . . . Heaviest Build 51 | 11 51 45 46 Greatest Support 40 | 40 40 40 40 Greatest Overweight (x) 1 | . 1 1 1 Average Overweight (x) . | . . 1 1 Largest Inventory Capacity 20 | 8 20 20 20 Average Capacity 19 | 7 19 20 20 Most Carried 14 | 5 10 14 14 Average Carried 11 | 2 8 12 13 Final Capacity 20 | 8 20 20 20 Final Carried 14 | 4 10 14 13 Class Distribution -------------------- 100% | Mutant Dominant Class ---------------- Mutant | -10/Materials Mutant | -10/Mines Mutant | -10/Exiles Resources | -11 -10 -10 -10 ----------- Run | Scr Mat Min Exi Matter Collected 310 | 143 167 . . Remotely . | . . . . Salvage Created 912 | 23 730 159 . Parts 51 | 3 39 9 . Haulers Intercepted 2 | . 2 . . Recyclers Shooed . | . . . . Parts Field Recycled . | . . . . Retrieved Matter . | . . . . Parts Self-Destructed . | . . . . Prevented . | . . . . Kills | -11 -10 -10 -10 ------- Run | Scr Mat Min Exi Combat Hostiles Destroyed 17 | . 15 2 . Guns 16 | . 14 2 . AOE 1 | . 1 . . Classes Destroyed 7 | 1 5 1 . Worker 1 | . 1 . . Builder 2 | . . 2 . Tunneler 1 | 1 . . . Hauler 2 | . 2 . . Watcher 1 | . 1 . . Swarmer 3 | . 3 . . Grunt 14 | . 12 2 . Best Kill Streak 3 | 1 3 1 . Combat Bots Only 3 | . 3 1 . Max Kills in Single Turn 2 | 1 2 1 . Gunslinging . | . . . . Exploded 1 | . 1 . . Melee . | . . . . Uniques/NPCs Destroyed . | . . . . Combat | -11 -10 -10 -10 -------- Run | Scr Mat Min Exi Damage Taken 1081 | . 576 139 366 Core 254 | . 112 21 121 Absorbed by Shields . | . . . . Core Remaining (%) 100 | 100 . . . Volleys Fired 80 | 2 59 15 4 Largest 2 | 2 2 2 2 Hottest 80 | 80 80 80 80 Shots Fired 156 | 4 116 30 6 Gun 156 | 4 116 30 6 Cannon . | . . . . Launcher . | . . . . Special . | . . . . Kinetic . | . . . . Thermal 119 | 2 81 30 6 Explosive . | . . . . Electromagnetic 37 | 2 35 . . Robot Hit Streak 10 | 2 10 6 6 Robot Miss Streak 3 | 1 3 2 . Penetration Max . | . . . . Secondary Targets 2 | . 2 . . Max Gunslinging Chain 1 | . 1 . . Shots Hit Robots 98 | 2 74 21 1 Core Hits 43 | 1 33 8 1 Critical Kills . | . . . . Critical Parts Destroyed . | . . . . Critical Strikes . | . . . . Melee Attacks 1 | . . . 1 Impact 1 | . . . 1 Slashing . | . . . . Piercing . | . . . . Sneak Attacks . | . . . . Combat Hostiles . | . . . . Follow-up Attacks . | . . . . Damage Inflicted 1266 | 22 1006 228 10 Guns 1125 | 22 865 228 10 Cannons . | . . . . Explosions 138 | . 138 . . Melee . | . . . . Ramming 3 | . 3 . . Kinetic . | . . . . Thermal 938 | 10 690 228 10 Explosive . | . . . . Electromagnetic 325 | 12 313 . . Impact . | . . . . Slashing . | . . . . Piercing . | . . . . Highest Corruption 3 | . . . 3 Average Corruption 3 | . . . 3 Corruption Purged . | . . . . Corruption Blocked . | . . . . Overload Shots . | . . . . Overflow Damage . | . . . . Projectiles . | . . . . Explosions . | . . . . Melee . | . . . . Knockbacks . | . . . . Impact . | . . . . Kinetic . | . . . . Secondary . | . . . . Self-Inflicted Damage 40 | . 40 . . Shots 1 | . 1 . . Rammed 2 | . 2 . . Targets Rammed 2 | . 2 . . Kicked . | . . . . Crushed . | . . . . Highest Temperature 237 | 36 191 237 36 Average Temperature 54 | 20 47 90 20 Received Heat Transfer 406 | . 291 75 40 Siege Activations . | . . . . Robots Corrupted . | . . . . Combat Hostiles . | . . . . Parts Fried . | . . . . Impact Corruptions . | . . . . Robots Melted . | . . . . Combat Hostiles . | . . . . Parts Melted 3 | . 2 1 . Heat Transferred 1900 | 25 1325 525 25 Parts Sabotaged . | . . . . Parts Stolen . | . . . . Parts Stripped . | . . . . Power Chain Reactions 2 | . 2 . . Missiles Intercepted . | . . . . Alert | -11 -10 -10 -10 ------- Run | Scr Mat Min Exi Peak Influence 303 | 5 303 65 . Initial 15 | . 3 15 . Average 49 | 1 86 17 . Maximum Alert Level 1 | . 1 . . Low Security (%) 96 | 100 92 100 . Level 1 3 | . 7 . . Level 2 . | . . . . Level 3 . | . . . . Level 4 . | . . . . Level 5 . | . . . . High Security . | . . . . Max Security . | . . . . Squads Dispatched 3 | . 3 . . Investigation . | . . . . Extermination . | . . . . Reinforcement 3 | . 3 . . Assault . | . . . . Garrison . | . . . . Intercept . | . . . . Searches Triggered . | . . . . Construction Impeded . | . . . . Haulers Reinforced . | . . . . Active Scanning Responses . | . . . . Cargo Convoy Interrupts . | . . . . Stealth | -11 -10 -10 -10 --------- Run | Scr Mat Min Exi Distress Signals 4 | . 4 . . Communications Jammed . | . . . . Distress Signals . | . . . . Times Spotted 46 | . 26 2 18 Peak Tracking Total 11 | . 5 2 11 Tactical Retreats 1 | . . . 1 Traps | -11 -10 -10 -10 ------- Run | Scr Mat Min Exi Traps Triggered . | . . . . Indirectly . | . . . . Trap Hack Attempts . | . . . . Triggered . | . . . . Disarmed . | . . . . Reprogrammed . | . . . . Reused . | . . . . Traps Extracted . | . . . . Installed . | . . . . Triggered . | . . . . Machines | -11 -10 -10 -10 ---------- Run | Scr Mat Min Exi Machines Disabled 4 | . 2 . 2 Max in Single Turn 1 | . 1 . 1 Machines Sabotaged . | . . . . Garrisons Compromised . | . . . . Overloaded Fab Kills . | . . . . Hacking | -11 -10 -10 -10 --------- Run | Scr Mat Min Exi Machines Accessed 3 | . . 1 2 Terminals . | . . . . Fabricators . | . . . . Repair Stations . | . . . . Recycling Units . | . . . . Scanalyzers . | . . . . Garrison Access . | . . . . Total Hacks 3 | . . 1 2 Successful 3 | . . 1 2 Failed . | . . . . Catastrophic . | . . . . Database Lockouts . | . . . . Manual 1 | . . . 1 Terminals . | . . . . Fabricators . | . . . . Repair Stations . | . . . . Recycling Units . | . . . . Scanalyzers . | . . . . Garrison Access . | . . . . Terminal Hacks 3 | . . 1 2 Record 1 | . . . 1 Open Door 1 | . . 1 . EX-Prototype ID Bank 1 | . . . 1 Fabricator Hacks . | . . . . Repair Station Hacks . | . . . . Recycling Unit Hacks . | . . . . Scanalyzer . | . . . . Garrison Access Hacks . | . . . . Unauthorized Hacks . | . . . . Terminals . | . . . . Fabricators . | . . . . Repair Stations . | . . . . Recycling Units . | . . . . Scanalyzers . | . . . . Garrison Access . | . . . . Data Cores Recovered . | . . . . Used . | . . . . Hacking Detections . | . . . . Full Trace Events . | . . . . Feedback Events . | . . . . Feedback Blocked . | . . . . Robot Schematics Acquired . | . . . . Robots Built . | . . . . Authchips . | . . . . Time . | . . . . Total Robot Build Rating . | . . . . Part Schematics Acquired . | . . . . Parts Built . | . . . . Authchips . | . . . . Time . | . . . . Total Part Build Rating . | . . . . Parts Repaired . | . . . . Time . | . . . . Parts Recycled . | . . . . Recycled Matter . | . . . . Retrieved Matter . | . . . . Retrieved Components . | . . . . Parts Scanalyzed . | . . . . Part Schematics Acquired . | . . . . Parts Damaged . | . . . . Bothacking | -11 -10 -10 -10 ------------ Run | Scr Mat Min Exi Used RIF Installer . | . . . . Robots Hacked . | . . . . Non-combat . | . . . . Combat . | . . . . Robot Hacks Applied . | . . . . Relay Couplers Released . | . . . . Fabnet Peak Effective % . | . . . . Robots Rewired . | . . . . Allies Hacked . | . . . . Hacks Repelled . | . . . . Allies | -11 -10 -10 -10 -------- Run | Scr Mat Min Exi Total Allies 3 | . . 3 . Largest Group 3 | . . 3 3 Highest-Rated Group 40 | . . 40 40 Highest-Rated Ally 16 | . . 16 16 Total Orders . | . . . . Ally Attacks 7 | . . . 7 Total Damage 56 | . . . 56 Kills . | . . . . Allies Corrupted . | . . . . Allies Melted . | . . . . Intel | -11 -10 -10 -10 ------- Run | Scr Mat Min Exi Robot Analysis Total . | . . . . Derelict Logs Recovered 2 | . . 2 . Drone Launches . | . . . . Drone Recoveries . | . . . . Exploration | -11 -10 -10 -10 ------------- Run | Scr Mat Min Exi Turns Passed 4123 | 73 1485 1559 1006 Spaces Moved 1622 | 36 543 630 413 Core 3 | 3 . . . Treads 1619 | 33 543 630 413 Legs . | . . . . Wheels . | . . . . Hover . | . . . . Flight . | . . . . Fastest Speed 50 | 50 160 240 240 Average Speed 236 | 150 236 240 240 Slowest Speed 240 | 160 240 240 240 Overloaded Moves . | . . . . Propulsion Burnouts . | . . . . Robots Hopped . | . . . . Cave-ins Triggered . | . . . . Exploration Rate (%) 61 | 3 83 98 62 Regions Visited 3 Branch Regions 2 Pre-discovered Areas 2 | . . 1 1 Known Exits Taken . | . . . . Unknown Exits Taken 3 | 1 1 1 . Scrap Searched 1 | . . 1 . Spaces Dug . | . . . . Terrain Destroyed 5 | . 5 . . Melee . | . . . . Projectile . | . . . . AOE 5 | . 5 . . Terrain Rammed . | . . . . Walls Destroyed . | . . . . Machines Disabled . | . . . . Actions | -11 -10 -10 -10 --------- Run | Scr Mat Min Exi Total 1741 | 49 624 648 420 Wait 6 | . 5 1 . Move 1619 | 35 542 629 413 Hop . | . . . . Pick Up 18 | 6 9 3 . Fast Attach 6 | 4 2 . . Attach 7 | 2 4 . 1 Detach 1 | . 1 . . Swap 1 | . . . 1 Drop . | . . . . Fire 80 | 2 59 15 4 Melee 1 | . . . 1 Ram . | . . . . Kick . | . . . . Crush 2 | . 2 . . Escape Stasis . | . . . . Rewire . | . . . . Trap . | . . . . Miscellaneous . | . . . . Route ------- -11/Scrapyard -10/Materials (discovered 3 exits: [*Mat x2] / *Min) -10/Mines (discovered 3 exits: [*Mat x2] / *Exi) -10/Exiles (discovered 2 exits: [*Min x2]) History --------- Turn | Location | Event 40 | -11/Scrapyard | Discovered new exit (range 16) 74 | -11/Scrapyard | Entered Materials 281 | -10/Materials | Discovered new exit (range 9) 306 | -10/Materials | Build established: Mutant 542 | -10/Materials | Discovered new exit (range 3) 1081 | -10/Materials | Discovered new exit (range 13) 1559 | -10/Materials | Entered Mines 1572 | -10/Mines | Core integrity fell below 50% 1748 | -10/Mines | Discovered new exit (range 8) 1897 | -10/Mines | Learned location of Mines (-9) 2098 | -10/Mines | Found the Drone Emporium 2107 | -10/Mines | Found Prototype Device 2357 | -10/Mines | Deemed a non-threat by the Exiles lab entrance 2438 | -10/Mines | Assisted by bots powering up and referring to "LRC-V3" 2465 | -10/Mines | Discovered new exit (range 7) 2562 | -10/Mines | Learned Materials interactive machine intel 3108 | -10/Mines | Discovered new exit (range 5) 3118 | -10/Mines | Entered Exiles 3118 | -10/Exiles | Accompanied by 3 allies 3152 | -10/Exiles | Discovered new exit (range 15) 3181 | -10/Exiles | Met 8R-AWN 3214 | -10/Exiles | Met EX-HEX 3289 | -10/Exiles | Met EX-BIN 3318 | -10/Exiles | Aligned with FarCom system 3320 | -10/Exiles | Given EX-Vault access code 3375 | -10/Exiles | Opened EX-Vault 3428 | -10/Exiles | Warned to stay clear of 0b10 Research branches 3507 | -10/Exiles | Met EX-DEC 3526 | -10/Exiles | Learned location of Zion (-6) 3987 | -10/Exiles | Discovered new exit (range 12) 4085 | -10/Exiles | Attacked by the Exiles 4122 | -10/Exiles | Core integrity fell below 20% 4124 | -10/Exiles | Destroyed by as-97439 with Assembled Blade Last Messages --------------- >>Record "MSG001714-01*" PINNED - TO ALL TESTERS: Stay away from Zion. Imprinter means us harm and is serious about it. World map updated: -6/Zion. 03987_ EXIT=FOUND 04016_ Machine disabled. 04085_ EXILES: Hostile robot within lab perimeter. Defensive protocols time, folks! 04085_ Machine disabled. 04087_ EX-DEC: "Let's see what this bad boy can do..." 04087_ EX-DEC deploys DAS Turret. 04087_ Machine disabled. 04089_ Trooper 1a destroyed. 04090_ Mercenary 1a destroyed. 04092_ Trooper 1b destroyed. 04093_ Lgt. Treads destroyed. 04095_ Lgt. Ion Engine destroyed. 04095_ Machine disabled. 04122_ Sml. Laser destroyed. 04122_ System corrupted by crushing effect (+3). Map ----- +----------------------------------------------------+ | ?????????????????????????????????????????????????? | | ?????????????????????????????????????????????????? | | ?????????????????????????????????????????????????? | | ?????????????????????????????????????????????????? | | ?????????????????????????????????????????????????? | | ?????????????????????????????????????????????????? | | ?????????????????????????????????????????????????? | | ????###??????????????????????????????????????????? | | ???## ?????????????????????????????????????????# | | ???# ?????????????????????????????????????????# | | ???# < ????????????????????????????????????????# | | ???# ????????????????????????????????????????# | | ???# ????????????????????????????????????????? | | ???# ???????????????????????????????????????? | | ????# ???????????????????????????????????????? | | ????# #??????????????????????????????????????? | | ?????# ?????????????#######??????????????????? | | ?????# #######??????#!!! "#??????????????????? | | ?????# #" ##?????# "#??????????????????? | | ??????# #?????# "#??????????????????? | | ??????##" ##???## ""#?????????????#????? | | ??????#"" #####" ""#???????????? """?? | | ??????#### ##" ""#????????????" """#? | | ?????????## #"" #??????????????" ?? | | ??????????#"## #?????????????"" ?? | | ??????????####### @ ##????????????"" "#? | | ????????????????### aaa"#???????????? ""?? | | ?????????????????#" aa ###???????????" "??? | | ???????????????"""" a ##??????????# #??? | | ???????????! "###""a ######???### ###? | | ???????????! "#?##" ""#####X# #"## | | ???????????! ##??#" "" | | ??????????? !""""""###???#"# "" | | ??????????#########??????#### | | ????????????????????????????### % | | ??????????????????????????????### = | | ????????????????????????????????## =%% | | ?????????????????????????????????## = [= | | ??????????????????????????????????##"[% | | ???????????????????????????????????#" | | ???????????????????????????????????#" | | ??????????????????????????????????#"" | | ??????????????????????????????????#""" " | | ??????????????????????????????????""" "" | | ??????????????????????????????????""" " | | ??????????????????????????????????"" | | ??????????????????????????????????""" | | ??????????????????????????????????"" | | ???????????????????????????????????"" | | ??????????????????????????????????#"""" | +----------------------------------------------------+ Best States ------------- Heat Dissipation 25 Energy Generation 10 Energy Capacity 125 Matter Stores 300 Matter Capacity 300 Sight Range 16 Terrain Scan Density 10 Evasion (%) 40 Recoil Reduction 2 Item Schematics ----------------- None Robot Schematics ------------------ None Fabricated ------------ Nothing Alien Tech Used ----------------- None Achievements -------------- None Challenges ------------ None Game ------ Seed LatentDroneInverter Manual? 0 Play Time 00:11:46 Cumulative 324.4 hours Start 2022.04.13 @ 00:18:44 End 2022.04.13 @ 00:29:00 Sessions 1 Manual Loads 0 Difficulty Rogue Special Mode None Game No. 477 Rogue 477 Adventurer 0 Explorer 0 Win Type - Total 5 Types 3/0/1/1/0/0/0/0/0 Lore% 79 Gallery% 81 Achievement% 64 Wizard Run 0 Options --------- ASCII 0 Keyboard 1 Movement Numpad Keybinds 0 Fullscreen 2 Font 24/Smallcaps Map View 76x50 Tactical HUD 1 Map Filters NONE Filters NONE Steam 1 RUN: edb48d98-d48d-4374-970b-f3c92e198aa3